bitfinex-derivatives/quotes_BNBF0:USTF0_20250221
["timestamp","ask_amount","ask_price","bid_price","bid_amount"]
[1740096003820,2.15725977,654.97,649.71,0.03078296]
[1740096004420,2.78405792,654.96,649.71,0.03078296]
[1740096004625,2.15725977,654.97,649.71,0.03078296]
[1740096004823,2.78399219,654.96,649.71,0.03078296]
[1740096005029,2.78399219,654.95,649.71,0.03078296]
[1740096005226,2.78366416,654.94,649.71,0.03078296]
[1740096005425,2.15725977,654.97,649.71,0.03078296]
[1740096005628,2.78353485,654.96,649.71,0.03078296]
[1740096005828,2.78353485,654.95,649.71,0.03078296]
[1740096006026,1.727,655.09,649.71,0.03078296]
[1740096006230,2.78323003,655.08,649.71,0.03078296]
[1740096006431,2.78323003,655.07,649.71,0.03078296]
[1740096006631,8.2927713,655.06,649.71,0.03078296]
[1740096006834,2.78323003,655.05,649.71,0.03078296]
[1740096007031,2.78323003,655.04,649.71,0.03078296]
[1740096007228,2.78323003,655.03,649.71,0.03078296]
[1740096007431,2.78323003,655.02,649.71,0.03078296]
[1740096007631,4.93913748,655.01,649.71,0.03078296]
[1740096007827,2.78323003,655.0,649.71,0.03078296]
[1740096008130,2.78323003,654.99,649.71,0.03078296]
[1740096008431,2.78323003,654.98,649.71,0.03078296]
[1740096008628,2.78323003,654.97,649.71,0.03078296]
[1740096008832,2.15590745,655.01,649.71,0.03078296]
[1740096009038,1.752,655.16,649.71,0.03078296]
[1740096009039,1.13824513,655.74,654.46,1.14166372]
[1740096009236,5.46315201,664.4,654.47,12.89578944]
[1740096009629,1.06150256,657.33,654.48,9.41296121]
[1740096009830,0.27992535,657.32,654.49,5.04617848]
[1740096010033,0.27992535,657.31,654.5,2.80721747]
[1740096010234,2.07492535,657.3,654.46,1.14166372]
[1740096010430,0.27992535,657.29,654.46,1.14166372]
[1740096010930,1.492,657.28,654.46,1.14166372]
[1740096011130,0.27992535,657.27,654.46,1.14166372]
[1740096011333,0.27992535,657.27,654.47,3.31542879]
[1740096011734,0.52032828,657.3,654.47,3.31542879]
[1740096011929,1.71039583,657.58,654.48,3.31542879]
[1740096012836,0.27990009,657.57,654.48,3.31542879]
[1740096013037,0.27990009,657.56,654.48,3.31542879]
[1740096013336,0.27990009,657.55,654.48,3.31542879]
[1740096013537,0.27990009,657.54,656.38,1.14166372]
[1740096013737,0.27990009,657.53,656.38,1.14166372]
[1740096013938,0.27990009,657.52,656.38,1.14166372]
[1740096014138,0.27990009,657.51,656.38,1.14166372]
[1740096014337,1.71039583,657.58,656.38,1.14166372]
[1740096014540,0.27989598,657.57,656.38,1.14166372]
[1740096014738,0.27989598,657.56,656.38,1.14166372]
[1740096015037,0.27989598,657.55,656.38,1.14166372]
[1740096015338,0.27989598,657.54,656.39,3.31542879]
[1740096015537,0.27989598,657.53,656.39,3.31542879]
[1740096015833,0.27989598,657.52,656.39,3.31542879]
[1740096016038,0.27989598,657.51,656.39,3.31542879]
[1740096016241,0.27989598,657.5,656.39,3.31542879]
[1740096016540,0.27989598,657.49,656.39,3.31542879]
[1740096016740,0.27989598,657.48,657.32,1.14077331]
[1740096016936,0.27989598,657.47,657.32,1.14077331]
[1740096017133,2.91956297,657.06,656.95,1.14166372]
[1740096017336,0.27989598,657.05,656.95,1.14166372]
[1740096017538,0.27989598,657.54,656.96,3.23895749]
[1740096017740,0.331,657.55,656.96,3.23895749]
[1740096017940,0.27987702,657.54,656.96,3.23895749]
[1740096018633,0.27987702,657.54,656.97,3.23895749]
[1740096019239,0.66110204,657.58,656.97,3.23895749]
[1740096020139,0.68060092,658.04,656.98,3.23895749]
[1740096020340,0.27986479,658.03,656.98,1.28495749]
[1740096020541,0.27986479,658.02,656.98,1.28495749]
[1740096020742,1.51513648,659.02,656.98,1.28495749]
[1740096020945,0.93369177,658.04,656.79,1.14166372]
[1740096021237,0.27987765,658.03,656.79,1.14166372]
[1740096021443,0.27987765,658.02,656.79,1.14166372]
[1740096021641,0.27987765,658.01,656.79,1.14166372]
[1740096021843,0.27987765,658.0,656.79,1.14166372]
[1740096022044,0.27987765,657.99,656.79,1.14166372]
[1740096022240,0.27987765,657.98,656.79,1.14166372]
[1740096022441,0.27987135,657.97,656.79,1.14166372]
[1740096022641,0.27987135,657.96,656.79,1.14166372]
[1740096022841,0.27987135,657.95,657.0,1.14166372]
[1740096023036,0.26237082,656.79,656.68,2.33089677]
[1740096023343,0.65382501,658.04,656.68,2.33089677]
[1740096023644,0.27983606,658.03,656.68,2.33089677]
[1740096023841,0.27983606,658.02,656.68,2.33089677]
[1740096024039,0.27983777,658.01,656.68,2.33089677]
[1740096024243,0.27983777,658.0,656.68,2.33089677]
[1740096024443,0.27983777,657.99,656.68,2.33089677]
[1740096024744,0.27983777,657.98,656.68,2.33089677]
[1740096024944,0.27983777,657.97,656.68,2.33089677]
[1740096025146,0.27983777,657.96,656.68,2.33089677]
[1740096025345,0.27983777,657.95,656.52,2.33089677]
[1740096025544,0.27983777,657.94,656.52,2.33089677]
[1740096025745,0.27983777,657.93,656.52,2.33089677]
[1740096025946,2.31701141,660.63,656.52,2.33089677]
[1740096025947,0.27983777,657.92,656.52,2.33089677]
[1740096026145,0.27983777,657.91,656.52,2.33089677]
[1740096026346,0.27983777,657.9,656.52,2.33089677]
[1740096026647,0.27983777,657.89,656.52,2.33089677]
[1740096026845,0.27983777,657.88,656.52,2.33089677]
[1740096027048,0.27983777,657.87,656.52,2.33089677]
[1740096027246,0.93371688,657.86,656.7,2.33089677]
[1740096027446,0.93371688,657.85,656.7,2.33089677]
[1740096027642,0.93371688,657.84,656.7,2.33089677]
[1740096027949,0.93371688,657.83,656.7,2.33089677]
[1740096028146,0.93371688,657.82,656.7,2.33089677]
[1740096028447,0.93371688,657.81,656.7,2.33089677]
[1740096028647,0.93371688,657.8,656.7,2.33089677]
[1740096028840,0.93371688,657.79,656.7,2.33089677]
[1740096029045,0.93371688,657.78,656.7,2.33089677]
[1740096029243,0.27983777,657.77,656.7,2.33089677]
[1740096029444,0.27983777,657.76,656.7,2.33089677]
[1740096029643,0.27983777,657.75,656.86,2.33089677]
[1740096029948,2.06510323,656.85,656.73,2.33089677]
[1740096030248,0.65387911,658.74,656.73,2.33089677]
[1740096030549,0.65379489,658.73,656.74,3.12255423]
[1740096030745,0.65379489,658.72,656.74,3.12255423]
[1740096030946,0.65379489,658.71,656.74,3.12255423]
[1740096031143,0.65379489,658.7,656.74,3.12255423]
[1740096031447,0.93366107,658.69,656.74,3.12255423]
[1740096031649,0.93366107,658.68,656.74,3.12255423]
[1740096031949,0.93366107,658.67,656.75,3.12255423]
[1740096032149,0.93366107,658.66,656.75,3.12255423]
[1740096032448,0.90708984,658.65,656.75,3.12255423]
[1740096032647,0.90708984,658.64,656.76,3.12255423]
[1740096032843,0.90708984,658.63,656.76,3.12255423]
[1740096033046,0.90708984,658.62,656.76,3.12255423]
[1740096033246,0.90708984,658.61,656.76,3.12255423]
[1740096033549,0.90708984,658.6,656.76,3.12255423]
[1740096033744,0.90714715,658.59,656.76,3.12255423]
[1740096033946,0.90714715,658.58,656.77,3.12255423]
[1740096034146,0.90714715,658.57,656.77,3.12255423]
[1740096034347,0.90714715,658.56,656.77,3.12255423]
[1740096034547,0.90714715,658.55,656.77,3.12255423]
[1740096034747,0.90714715,658.54,656.77,3.12255423]
[1740096034945,2.089,658.61,656.77,3.12255423]
[1740096034946,0.90714715,658.53,656.77,3.12255423]
[1740096035248,2.089,658.61,656.78,3.12255423]
[1740096035549,0.90715541,658.6,656.78,3.12255423]
[1740096035745,0.62729836,658.59,656.78,3.12255423]
[1740096035957,0.90715541,658.58,656.78,3.12255423]
[1740096036252,0.90715541,658.57,656.78,3.12255423]
[1740096036451,0.90715541,658.56,656.78,3.12255423]
[1740096036647,0.90715541,658.55,656.78,3.12255423]
[1740096036851,0.90715541,658.54,656.78,3.12255423]
[1740096037049,1.25,658.54,656.79,3.12255423]
[1740096037247,0.90710649,658.53,656.79,3.12255423]
[1740096037444,0.90710649,658.52,656.79,3.12255423]
[1740096037652,0.90710649,658.51,656.79,3.12255423]
[1740096037952,0.90710649,658.5,656.79,3.12255423]
[1740096038146,0.90710649,658.49,656.79,3.12255423]
[1740096038344,0.90710649,658.48,656.79,3.12255423]
[1740096038551,1.25,658.54,656.8,3.12255423]
[1740096038552,0.90710649,658.47,656.8,3.12255423]
[1740096038851,0.90703504,658.46,656.8,3.12255423]
[1740096039051,0.90703504,658.45,656.8,3.12255423]
[1740096039252,0.90703504,658.44,656.8,3.12255423]
[1740096039552,0.90703504,658.43,656.8,3.12255423]
[1740096039752,0.90703504,658.42,656.8,3.12255423]
[1740096039954,0.90703504,658.41,656.8,3.12255423]
[1740096040253,1.25,658.54,656.81,3.12255423]
[1740096040453,0.90700462,658.53,656.81,3.12255423]
[1740096040653,0.90700462,658.52,656.81,3.12255423]
[1740096040846,0.90700462,658.51,656.81,3.12255423]
[1740096041051,0.90700462,658.5,656.81,3.12255423]
[1740096041246,0.90700462,658.49,656.81,3.12255423]
[1740096041449,0.90700462,658.48,656.82,3.12255423]
[1740096041648,0.27985688,658.47,656.82,3.12255423]
[1740096041852,0.27985688,658.46,656.82,3.12255423]
[1740096042051,0.27985688,658.45,656.82,3.12255423]
[1740096042253,0.27985688,658.44,656.82,3.12255423]
[1740096042549,0.27985688,658.43,656.83,3.12255423]
[1740096042752,0.27985688,658.42,656.83,3.12255423]
[1740096042953,0.27985688,658.41,656.83,3.12255423]
[1740096043254,0.27985688,658.4,656.83,3.12255423]
[1740096043454,0.27985688,658.39,656.83,3.12255423]
[1740096043650,0.27985688,658.38,656.83,3.12255423]
[1740096043850,0.27985688,658.37,656.83,3.12255423]
[1740096044050,0.27985688,658.36,656.84,3.12255423]
[1740096044253,0.27985688,658.35,656.84,3.12255423]
[1740096044454,0.27985688,658.34,656.84,3.12255423]
[1740096044657,0.27985688,658.33,656.84,3.12255423]
[1740096044957,0.27985688,658.32,656.84,3.12255423]
[1740096045158,0.27985688,658.31,656.84,3.12255423]
[1740096045352,0.27985688,658.3,656.84,3.12255423]
[1740096045553,0.27985688,658.29,656.84,3.12255423]
[1740096045756,0.27985688,658.28,656.85,3.12255423]
[1740096045953,0.90700462,658.27,656.85,3.12255423]
[1740096046152,0.90700462,658.26,656.85,3.12255423]
[1740096046458,0.90700462,658.25,656.85,3.12255423]
[1740096046659,0.90692467,658.24,656.85,3.12255423]
[1740096046858,0.90692467,658.23,656.85,3.12255423]
[1740096047059,0.90692467,658.22,656.85,3.12255423]
[1740096047256,0.90692467,658.21,656.86,3.12255423]
[1740096047457,0.90692467,658.2,656.86,3.12255423]
[1740096047756,1.402,658.38,656.86,3.12255423]
[1740096047757,0.90692467,658.19,656.86,3.12255423]
[1740096047962,0.90692467,658.18,656.86,3.12255423]
[1740096048163,1.402,658.38,656.86,3.12255423]
[1740096048461,0.90693502,658.37,656.86,3.12255423]
[1740096048661,0.90693502,658.36,656.86,3.12255423]
[1740096048862,0.90693502,658.35,656.86,3.12255423]
[1740096049061,0.90693502,658.34,656.86,3.12255423]
[1740096049256,1.402,658.38,656.87,3.12255423]
[1740096049257,0.90693502,658.33,656.87,3.12255423]
[1740096049462,0.90693502,658.32,656.87,3.12255423]
[1740096049664,0.90693502,658.31,656.87,3.12255423]
[1740096049964,0.90693502,658.3,656.87,3.12255423]
[1740096050160,0.90693502,658.29,656.87,3.12255423]
[1740096050357,0.90693502,658.28,656.87,3.12255423]
[1740096050561,0.90693502,658.27,656.87,3.12255423]
[1740096050761,0.90693502,658.26,656.87,3.12255423]
[1740096050957,0.90693502,658.25,656.88,3.12255423]
[1740096051162,0.90693502,658.24,656.88,3.12255423]
[1740096051462,0.90693502,658.23,656.88,3.12255423]
[1740096051664,0.90693502,658.22,656.88,3.12255423]
[1740096051860,0.27988201,658.21,656.88,3.12255423]
[1740096052062,0.27988201,658.2,656.88,3.12255423]
[1740096052262,0.27988201,658.19,656.88,3.12255423]
[1740096052459,0.27988201,658.18,656.89,3.12255423]
[1740096052661,0.27988201,658.17,656.89,3.12255423]
[1740096052865,0.27988201,658.16,656.89,3.12255423]
[1740096053165,0.27987831,658.15,656.89,3.12255423]
[1740096053363,0.27987831,658.14,656.89,3.12255423]
[1740096053564,0.27987831,658.13,656.89,3.12255423]
[1740096053760,0.27987831,658.12,656.89,3.12255423]
[1740096053961,0.27987831,658.11,656.9,3.12255423]
[1740096054162,0.62696456,658.31,656.9,3.12255423]
[1740096054163,0.27987831,658.1,656.9,3.12255423]
[1740096054359,0.27987831,658.09,656.9,3.12255423]
[1740096054563,1.402,658.38,656.9,3.12255423]
[1740096054765,0.90685417,658.37,656.9,3.12255423]
[1740096055162,0.90684945,658.36,656.91,3.12255423]
[1740096055364,0.90684945,658.35,656.91,3.12255423]
[1740096055566,0.90684945,658.34,656.91,3.12255423]
[1740096055768,0.90684945,658.33,656.91,3.12255423]
[1740096055971,0.90684945,658.32,656.91,3.12255423]
[1740096056168,0.90684945,658.31,656.91,3.12255423]
[1740096056368,0.90684945,658.3,656.91,3.12255423]
[1740096056567,0.90684945,658.29,656.91,3.12255423]
[1740096056868,0.90684945,658.28,656.92,3.12255423]
[1740096057068,0.90684945,658.27,656.92,3.12255423]
[1740096057268,0.27987681,658.26,656.92,3.12255423]
[1740096057468,0.27987681,658.25,656.92,3.12255423]
[1740096057665,0.27987681,658.24,656.92,3.12255423]
[1740096057861,1.402,658.38,656.92,3.12255423]
[1740096057862,0.27987265,658.23,656.92,3.12255423]
[1740096058165,0.27987265,658.22,656.92,3.12255423]
[1740096058368,0.27987265,658.21,656.92,3.12255423]
[1740096058566,0.27987265,658.2,656.92,3.12255423]
[1740096058866,0.27987265,658.19,656.93,3.12255423]
[1740096059071,0.27987265,658.18,656.93,3.12255423]
[1740096059374,0.27987265,658.17,656.93,3.12255423]
[1740096059573,0.27987265,658.16,656.93,3.12255423]
[1740096059870,0.27987265,658.15,656.93,3.12255423]
[1740096060070,0.27987265,658.14,656.93,3.12255423]
[1740096060271,0.27987265,658.13,656.93,3.12255423]
[1740096060471,0.27987265,658.12,656.94,3.12255423]
[1740096060672,0.27987265,658.11,656.94,3.12255423]
[1740096060873,0.27987265,658.1,656.94,3.12255423]
[1740096061067,0.27987265,658.09,656.94,3.12255423]
[1740096061272,0.27987265,658.08,656.94,3.12255423]
[1740096061672,0.27987741,658.07,656.94,3.12255423]
[1740096061872,2.482,658.19,656.94,3.12255423]
[1740096061873,0.27987741,658.06,656.94,3.12255423]
[1740096062069,0.27987741,658.06,656.77,1.36858652]
[1740096062070,0.27987741,658.05,656.95,3.12255423]
[1740096062275,0.30393751,658.03,656.95,3.12255423]
[1740096062475,0.2798724,658.02,656.95,3.12255423]
[1740096062776,0.30395136,658.0,656.95,3.12255423]
[1740096062977,0.27987035,657.99,656.95,3.12255423]
[1740096063175,0.30396522,657.97,656.95,3.12255423]
[1740096063370,0.27987035,657.96,656.95,3.12255423]
[1740096063572,0.30397908,657.94,656.95,3.12255423]
[1740096063772,0.27987035,657.93,656.96,3.12255423]
[1740096063994,0.30399294,657.91,656.96,3.12255423]
[1740096064180,0.27987035,657.9,656.96,3.12255423]
[1740096064376,0.3040068,657.88,656.96,3.12255423]
[1740096064578,0.27987035,657.87,656.96,3.12255423]
[1740096064777,0.30402067,657.85,656.96,3.12255423]
[1740096064979,0.27987035,657.84,656.96,3.12255423]
[1740096065177,0.30403453,657.82,656.96,3.12255423]
[1740096065478,0.27986409,657.81,656.97,3.12255423]
[1740096065677,0.3040484,657.79,656.97,3.12255423]
[1740096065972,0.27986409,657.78,656.97,3.12255423]
[1740096066177,0.27986409,657.77,656.97,3.12255423]
[1740096066377,0.38011398,657.76,656.97,3.12255423]
[1740096066578,0.30406227,657.76,656.97,3.12255423]
[1740096066778,0.30406689,657.75,656.98,3.12255423]
[1740096067483,0.27985904,657.74,656.98,3.12255423]
[1740096067679,0.58393518,657.73,656.98,3.12255423]
[1740096067874,0.27985904,657.72,656.98,3.12255423]
[1740096068077,0.58394442,657.71,656.98,3.12255423]
[1740096068279,0.58394905,657.7,656.98,3.12255423]
[1740096068579,0.58395367,657.69,656.99,3.12255423]
[1740096068779,0.58395957,657.68,656.99,3.12255423]
[1740096068979,0.30409925,657.68,656.99,3.12255423]
[1740096069775,0.27985486,657.67,656.99,3.12255423]
[1740096069977,0.07695691,657.66,656.99,3.12255423]
[1740096070182,0.30409925,657.68,657.0,3.12255423]
[1740096071074,0.27985213,657.67,657.0,3.12255423]
[1740096071784,0.27985213,657.67,657.01,3.12255423]
[1740096073277,0.27984489,657.66,657.01,3.12255423]
[1740096073481,0.27984489,657.67,657.01,3.12255423]
[1740096073680,0.27984489,657.66,657.02,3.12255423]
[1740096073883,0.27984489,657.67,657.02,3.12255423]
[1740096074082,0.27984489,657.66,657.02,3.12255423]
[1740096074385,0.27984489,657.65,657.02,3.12255423]
[1740096074586,0.27984489,657.67,657.02,3.12255423]
[1740096074789,0.27984489,657.66,657.02,3.12255423]
[1740096074981,0.27984489,657.65,657.02,3.12255423]
[1740096075183,0.27984489,657.64,657.02,3.12255423]
[1740096075389,0.27984489,657.63,657.02,3.12255423]
[1740096075581,0.27984489,657.67,657.02,3.12255423]
[1740096075987,0.27984489,657.67,657.03,3.12255423]
[1740096076486,0.14885406,657.68,657.03,3.12255423]
[1740096076889,2.482,658.19,657.03,3.12255423]
[1740096077184,0.30387285,658.17,657.03,3.12255423]
[1740096077387,0.26752912,658.16,657.04,3.12255423]
[1740096077588,0.30388671,658.14,657.04,3.12255423]
[1740096077784,0.26752912,658.13,657.04,3.12255423]
[1740096077987,0.26752912,658.12,657.04,3.12255423]
[1740096078191,0.57142968,658.11,657.04,3.12255423]
[1740096078491,0.26752912,658.1,657.04,3.12255423]
[1740096078688,0.26752912,658.09,657.04,3.12255423]
[1740096078987,0.26752912,658.09,656.76,1.36858652]
[1740096078988,0.26752912,658.08,657.05,3.12255423]
[1740096079182,0.26752912,658.07,657.05,3.12255423]
[1740096079387,0.30390056,658.11,657.05,3.12255423]
[1740096079681,0.26756394,658.1,657.05,3.12255423]
[1740096079881,0.26756394,658.09,657.05,3.12255423]
[1740096080186,0.26756394,658.08,657.05,3.12255423]
[1740096080387,0.26756394,658.07,657.05,3.12255423]
[1740096080587,0.30390056,658.11,657.05,3.12255423]
[1740096080588,0.26756394,658.06,657.22,1.1379757]
[1740096080781,0.26756394,658.05,657.22,1.1379757]
[1740096080986,0.30392365,658.06,657.22,1.1379757]
[1740096081183,0.26756792,658.05,657.23,3.12255423]
[1740096081385,0.26756792,658.04,657.23,3.12255423]
[1740096081682,0.26756792,658.03,657.23,3.12255423]
[1740096081885,0.26756792,658.02,657.23,3.12255423]
[1740096082085,0.26756792,658.01,657.23,3.12255423]
[1740096082285,0.26756792,658.0,657.23,3.12255423]
[1740096082683,0.26756792,657.99,657.23,3.12255423]
[1740096082889,0.26756792,657.98,657.23,3.12255423]
[1740096083083,0.26756792,657.97,657.24,3.12255423]
[1740096083286,0.0700718,657.96,657.24,3.12255423]
[1740096083488,0.30392365,658.06,657.24,3.12255423]
[1740096084491,0.2581253,658.05,657.24,3.12255423]
[1740096084692,0.56205819,658.04,657.24,3.12255423]
[1740096084891,0.2581253,658.03,657.24,3.12255423]
[1740096085091,0.2581253,658.02,657.24,3.12255423]
[1740096085292,0.2581253,658.01,657.24,3.12255423]
[1740096085489,0.2581253,658.0,657.25,3.12255423]
[1740096085690,0.2581316,657.99,657.25,3.12255423]
[1740096085986,0.2581316,657.98,657.25,3.12255423]
[1740096086190,0.25813462,657.97,657.25,3.12255423]
[1740096086491,1.58897459,658.2,657.25,3.12255423]
[1740096086792,0.30386362,658.19,657.25,3.12255423]
[1740096086992,0.30386362,658.19,657.26,3.12255423]
[1740096088588,0.30386362,658.19,657.27,3.12255423]
[1740096089690,1.307,658.18,657.27,3.12255423]
[1740096089895,0.30387285,658.17,657.28,3.12255423]
[1740096091489,0.30387285,658.17,657.29,3.12255423]
[1740096092789,0.30387285,658.17,657.12,1.1379757]
[1740096093495,0.30387285,658.17,657.13,3.02910665]
[1740096094995,0.30387285,658.17,657.14,3.02910665]
[1740096096497,0.30387285,658.17,657.15,3.02910665]
[1740096097299,1.986,658.16,657.15,3.02910665]
[1740096097600,0.30388209,658.15,657.16,3.02910665]
[1740096098697,0.30388209,658.15,657.17,3.02910665]
[1740096100001,0.30388209,658.15,657.18,3.02910665]
[1740096101605,0.30388209,658.15,657.19,3.02910665]
[1740096102905,0.30388209,658.15,657.2,3.02910665]
[1740096104813,0.30388209,658.15,657.21,3.02910665]
[1740096106315,0.30388209,658.15,657.22,3.02910665]
[1740096107214,0.30388209,658.15,657.27,1.1379757]
[1740096107714,0.30388209,658.15,657.28,3.02910665]
[1740096109616,0.30388209,658.15,657.29,3.02910665]
[1740096110216,0.30388209,658.15,657.35,1.1379757]
[1740096110820,0.30388209,658.15,657.36,3.02910665]
[1740096112319,0.30388209,658.15,657.37,3.02910665]
[1740096113121,0.30388209,658.15,657.45,1.1379757]
[1740096113722,2.234,658.14,657.45,1.1379757]
[1740096113913,0.30389132,658.13,657.45,1.1379757]
[1740096114119,0.30389132,658.13,657.46,3.02910665]
[1740096116322,0.30389132,658.13,657.47,3.02910665]
[1740096118321,0.30389132,658.13,657.48,3.02910665]
[1740096119923,0.30389132,658.13,657.49,3.02910665]
[1740096121825,0.30389132,658.13,657.5,3.02910665]
[1740096123520,0.30389132,658.13,657.51,3.02910665]
[1740096125924,0.30389132,658.13,657.52,3.02910665]
[1740096127729,0.30389132,658.13,657.53,3.02910665]
[1740096128833,0.30389132,658.13,657.54,3.02910665]
[1740096130035,0.30389132,658.13,657.55,3.02910665]
[1740096130538,0.30389132,658.13,657.48,1.1379757]
[1740096130836,0.30389132,658.13,657.22,1.36858652]
[1740096130837,0.30389132,658.13,657.54,1.1379757]
[1740096133437,0.08146959,658.13,657.54,1.1379757]
[1740096133833,1.36215025,659.07,657.55,3.03980815]
[1740096134036,0.30346711,659.05,657.55,3.03980815]
[1740096134433,0.30346711,659.05,657.56,3.03980815]
[1740096136240,0.30346711,659.05,657.57,3.03980815]
[1740096137941,0.30346711,659.05,657.58,3.03980815]
[1740096138842,0.30346711,659.05,657.59,3.03980815]
[1740096139946,1.861,659.04,657.86,1.13692306]
[1740096140137,0.30348092,659.02,657.86,1.13692306]
[1740096141746,0.30348092,659.02,657.87,3.03980815]
[1740096142748,0.30348092,659.02,657.88,3.03980815]
[1740096144343,1.61,659.01,657.88,3.03980815]
[1740096144546,0.30349474,658.99,657.88,3.03980815]
[1740096144747,0.30349474,658.99,657.89,3.03980815]
[1740096145248,1.58753692,658.98,657.89,3.03980815]
[1740096145450,0.30350855,658.96,657.89,3.03980815]
[1740096146450,0.30350855,658.96,657.9,3.03980815]
[1740096148050,0.30350855,658.96,657.91,3.03980815]
[1740096149551,0.30350855,658.96,657.79,1.13692306]
[1740096150350,0.30350855,658.96,657.49,1.13692306]
[1740096150651,0.30350855,658.96,657.5,3.02276906]
[1740096151051,1.704,658.95,657.5,3.02276906]
[1740096151250,0.30352237,658.93,657.5,3.02276906]
[1740096151747,0.30352237,658.93,657.51,3.02276906]
[1740096153749,0.30352237,658.93,657.52,3.02276906]
[1740096155352,0.30352237,658.93,657.53,3.02276906]
[1740096156853,0.30352237,658.93,657.54,3.02276906]
[1740096157954,0.30352237,658.93,657.71,1.13692306]
[1740096159054,0.30352237,658.93,657.72,3.02276906]
[1740096160052,0.30352237,658.93,657.75,1.13692306]
[1740096162559,0.30352237,658.93,657.76,3.02276906]
[1740096164158,0.30352237,658.93,657.77,3.02276906]
[1740096166061,0.30352237,658.93,657.78,3.02276906]
[1740096167754,0.30352237,658.93,657.76,1.13384852]
[1740096167755,0.30352237,658.93,657.79,3.02276906]
[1740096169164,0.30352237,658.93,657.8,3.02276906]
[1740096169868,0.30352237,658.93,657.89,1.13384852]
[1740096173072,0.30352237,658.93,657.84,1.13384852]
[1740096176677,0.30352237,658.93,657.85,1.13384852]
[1740096178976,0.30352237,658.93,657.68,1.13384852]
[1740096181280,0.30352237,658.93,656.82,3.14535312]
[1740096181281,0.30352237,658.93,657.71,1.13384852]
[1740096182481,0.30352237,658.93,657.72,3.02252455]
[1740096183376,0.30352237,658.93,657.86,1.13384852]
[1740096184282,0.30352237,658.93,657.87,3.02252455]
[1740096185785,0.30352237,658.93,657.88,3.02252455]
[1740096186386,0.30352237,658.93,657.91,1.13384852]
[1740096187384,0.30352237,658.93,657.92,3.02252455]
[1740096188286,0.30352237,658.93,657.91,1.13384852]
[1740096189385,0.30352237,658.93,657.5,1.13384852]
[1740096191889,0.30352237,658.93,657.48,1.13384852]
[1740096194292,1.225,658.92,657.48,1.13384852]
[1740096194487,1.225,658.92,656.53,2.31494074]
[1740096194488,0.30353619,658.9,657.5,1.13384852]
[1740096194890,1.58795949,658.89,657.5,1.13384852]
[1740096195088,0.30355001,658.87,657.5,1.13384852]
[1740096196294,0.30355001,658.87,657.51,3.03292517]
[1740096197693,0.30355001,658.87,657.52,3.03292517]
[1740096197894,0.30355001,658.87,657.83,1.13384852]
[1740096198997,0.30355001,658.87,657.84,3.03292517]
[1740096200295,0.30355001,658.87,657.93,1.13384852]
[1740096200597,0.30355001,658.87,657.94,3.03292517]
[1740096202092,0.30355001,658.87,657.95,3.03292517]
[1740096203694,0.30355001,658.87,657.96,3.03292517]
[1740096205099,0.30355001,658.87,657.26,1.36061823]
[1740096205100,0.30355001,658.87,657.97,3.03292517]
[1740096207002,0.30355001,658.87,657.98,3.03292517]
[1740096208303,0.30355001,658.87,657.99,3.03292517]
[1740096209401,0.30355001,658.87,657.85,1.13384852]
[1740096209402,0.30355001,658.87,658.0,3.03292517]
[1740096210800,0.30355001,658.87,658.01,3.03292517]
[1740096212101,0.30355001,658.87,658.02,3.03292517]
[1740096213900,0.30355001,658.87,657.78,1.13384852]
[1740096216507,0.30355001,658.87,657.47,1.13384852]
[1740096216707,0.30355001,658.87,657.48,3.02242901]
[1740096218705,0.30355001,658.87,657.5,1.13384852]
[1740096220108,1.473,658.86,657.5,1.13384852]
[1740096220308,0.30355923,658.85,657.5,1.13384852]
[1740096221407,0.30355923,658.85,657.54,1.13384852]
[1740096222907,0.30355923,658.85,657.55,3.0212573]
[1740096223810,0.30355923,658.85,657.59,1.13384852]
[1740096226107,0.30355923,658.85,657.65,1.13384852]
[1740096226303,0.30355923,658.85,657.66,3.02107295]
[1740096227602,0.30355923,658.85,657.65,1.13384852]
[1740096228109,0.30355923,658.85,657.85,1.13384852]
[1740096230210,0.30355923,658.85,657.86,3.02024941]
[1740096231811,0.30355923,658.85,657.87,3.02024941]
[1740096232510,0.30355923,658.85,658.18,1.13384852]
[1740096234911,0.30355923,658.85,658.19,1.13384852]
[1740096242712,0.30355923,658.85,658.2,3.02135687]
[1740096243915,0.30355923,658.85,658.21,3.02135687]
[1740096244822,0.30355923,658.85,658.27,1.13384852]
[1740096245117,0.30355923,658.85,658.28,3.02135687]
[1740096246423,0.30355923,658.85,658.29,3.02135687]
[1740096246623,0.30355923,658.85,658.27,1.13384852]
[1740096247222,0.30355923,658.85,650.79,9.13147763]
[1740096247223,0.30355923,658.85,658.2,1.13384852]
[1740096249627,0.30355923,658.85,657.63,1.13384852]
[1740096250225,0.30355923,658.85,657.64,3.02372678]
[1740096252128,0.30355923,658.85,657.65,3.02372678]
[1740096253428,0.30355923,658.85,657.47,1.13384852]
[1740096253828,0.30355923,658.85,657.38,1.13384852]
[1740096256431,0.30355923,658.85,656.99,1.13384852]
[1740096257329,0.30355923,658.85,657.0,3.0171498]
[1740096258431,0.30355923,658.85,657.01,3.0171498]
[1740096260031,0.30355923,658.85,657.02,3.0171498]
[1740096261929,0.30355923,658.85,657.03,3.0171498]